bitfinex-derivatives/quotes_BTCF0:USTF0_20250417
["timestamp","ask_amount","ask_price","bid_price","bid_amount"]
[1744910622217,0.00017663,84920.0,84919.0,0.1812804]
[1744910624027,0.11795563,84920.0,84919.0,0.1812804]
[1744910625331,0.11795563,84920.0,84919.0,0.1497804]
[1744910625527,0.21235563,84920.0,84919.0,0.032]
[1744910625828,0.21235563,84920.0,84915.0,0.3608]
[1744910625829,0.1177846,84916.0,84915.0,0.478585]
[1744910626228,0.1803846,84916.0,84915.0,0.478585]
[1744910626726,0.1803846,84916.0,84915.0,0.117785]
[1744910627428,0.1803846,84916.0,84915.0,0.148585]
[1744910630736,0.1803846,84916.0,84915.0,0.181585]
[1744910636639,0.0626,84916.0,84915.0,0.542385]
[1744910636828,0.00113806,84934.0,84915.0,1.20506]
[1744910637027,0.29807491,84958.0,84950.0,0.1177374]
[1744910637340,0.21915825,84951.0,84950.0,0.1177374]
[1744910637722,0.21907825,84951.0,84950.0,0.1810374]
[1744910637934,0.20915825,84951.0,84950.0,0.1810374]
[1744910638328,1e-08,84958.0,84952.0,0.0588666]
[1744910638529,0.00035873,84965.0,84962.0,0.0588598]
[1744910638732,0.0302,84970.0,84969.0,0.1177111]
[1744910638930,0.1479097,84970.0,84969.0,0.1177111]
[1744910639234,0.5087097,84970.0,84969.0,0.1177111]
[1744910639426,0.1479097,84970.0,84969.0,0.1177111]
[1744910639626,0.5087097,84970.0,84969.0,0.1810111]
[1744910639840,0.1479097,84970.0,84969.0,0.1810111]
[1744910640239,0.1479097,84970.0,84969.0,0.0325]
[1744910640538,0.1783097,84970.0,84969.0,0.1502111]
[1744910642528,0.1765783,84965.0,84964.0,0.1177179]
[1744910642737,0.1765783,84965.0,84957.0,0.00896086]
[1744910642738,0.1177208,84962.0,84957.0,0.117727]
[1744910643046,0.1277208,84962.0,84961.0,0.11789883]
[1744910643837,0.1865818,84962.0,84959.0,0.0588624]
[1744910644040,0.1177236,84960.0,84959.0,0.0588624]
[1744910644535,0.1831236,84960.0,84959.0,0.0588624]
[1744910645339,0.0588578,84966.0,84965.0,0.1177167]
[1744910645543,0.0588578,84966.0,84965.0,0.4785167]
[1744910645948,0.0589378,84966.0,84965.0,0.4785167]
[1744910646141,0.0589378,84966.0,84965.0,0.5395167]
[1744910647548,0.4197378,84966.0,84965.0,0.1787167]
[1744910649147,0.4197378,84966.0,84965.0,0.1482167]
[1744910650543,0.4197378,84966.0,84965.0,0.0305]
[1744910650745,0.4197378,84966.0,84965.0,0.1482167]
[1744910653648,0.4517378,84966.0,84965.0,0.1800167]
[1744910657053,0.0909378,84966.0,84965.0,0.1800167]
[1744910657555,0.1240378,84966.0,84965.0,0.1800167]
[1744910658459,0.0909378,84966.0,84965.0,0.1800167]
[1744910659554,0.0589378,84966.0,84965.0,0.1800167]
[1744910660354,8e-05,84966.0,84965.0,0.1800167]
[1744910660751,0.1177142,84967.0,84966.0,0.1177153]
[1744910661150,0.1177942,84967.0,84966.0,0.1807153]
[1744910661541,0.00010801,84973.0,84966.0,0.063]
[1744910661741,0.00011685,84978.0,84977.0,0.1177]
[1744910661952,0.14781545,84978.0,84977.0,0.1177]
[1744910662451,0.14781545,84978.0,84977.0,0.1803]
[1744910662651,0.14789545,84978.0,84977.0,0.1803]
[1744910663349,0.1177097,84970.0,84969.0,0.00017652]
[1744910663848,0.1509097,84970.0,84969.0,0.03207652]
[1744910664756,0.1815097,84970.0,84969.0,0.18238722]
[1744910667456,0.1815097,84970.0,84969.0,0.00017652]
[1744910667758,0.1915097,84970.0,84969.0,0.00017652]
[1744910667953,0.1915097,84970.0,84969.0,2.042e-05]
[1744910669755,0.1915097,84970.0,84969.0,0.11773152]
[1744910669954,0.0406,84970.0,84969.0,0.11773152]
[1744910670155,0.1277097,84970.0,84969.0,0.47853152]
[1744910670362,0.1177897,84970.0,84969.0,0.4785111]
[1744910670560,0.1177897,84970.0,84969.0,0.1808111]
[1744910670958,0.1177897,84970.0,84969.0,0.0631]
[1744910671158,0.1177897,84970.0,84969.0,0.1808111]
[1744910673867,8e-05,84970.0,84969.0,0.1808111]
[1744910674262,0.1177059,84973.0,84972.0,0.117707]
[1744910674458,0.058851,84976.0,84975.0,0.1765507]
[1744910674659,0.058851,84976.0,84975.0,0.2096507]
[1744910674962,0.1176975,84979.0,84977.0,0.1177]
[1744910675261,0.00010801,84980.0,84977.0,0.1177]
[1744910675456,0.11780391,84980.0,84977.0,0.1811]
[1744910675652,0.11781545,84978.0,84977.0,0.1811]
[1744910676464,0.11789545,84978.0,84977.0,0.1811]
[1744910677174,0.00019685,84978.0,84977.0,0.1811]
[1744910677465,0.005,84982.0,84981.0,0.1176945]
[1744910677960,0.1765186,84993.0,84992.0,0.1176793]
[1744910678660,0.1765186,84993.0,84992.0,0.1488793]
[1744910679363,0.1765186,84993.0,84992.0,0.1791793]
[1744910679364,0.2079186,84993.0,84992.0,0.1791793]
[1744910681364,0.45104,84993.0,84992.0,0.1791793]
[1744910681771,0.45104,84993.0,84992.0,0.1176793]
[1744910681964,0.48124,84993.0,84992.0,0.1176793]
[1744910682570,0.48124,84993.0,84991.0,0.0588403]
[1744910682769,0.48124,84993.0,84992.0,0.0306]
[1744910682967,0.1792779,84993.0,84992.0,0.1482793]
[1744910683163,0.0616,84993.0,84992.0,0.1808793]
[1744910683468,0.03148,84993.0,84992.0,0.1808793]
[1744910683855,8e-05,84993.0,84992.0,0.1808793]
[1744910684364,0.391,84996.0,84995.0,0.1176751]
[1744910684563,0.0302,84996.0,84995.0,0.1176751]
[1744910684767,0.1,85000.0,84999.0,0.1176696]
[1744910684971,0.25797621,85000.0,84999.0,0.1176696]
[1744910685162,0.2578682,85000.0,84999.0,0.1176696]
[1744910685474,0.10008,85000.0,84999.0,0.1176696]
[1744910685670,0.1,85000.0,84999.0,0.1810696]
[1744910685972,0.10008,85000.0,84999.0,0.1810696]
[1744910686166,0.1,85000.0,84999.0,0.1810696]
[1744910686363,0.10008,85000.0,84999.0,0.1810696]
[1744910687465,0.00510801,85008.0,85007.0,0.1176585]
[1744910688476,0.00510801,85008.0,85007.0,0.1790585]
[1744910688775,0.005,85008.0,85007.0,0.1790585]
[1744910688960,0.00508,85008.0,85007.0,0.1790585]
[1744910690168,0.03568,85008.0,85007.0,0.1790585]
[1744910692076,0.1533371,85008.0,85007.0,0.1790585]
[1744910693177,0.03568,85008.0,85007.0,0.1790585]
[1744910698581,0.00508,85008.0,85007.0,0.1790585]
[1744910698781,0.005,85008.0,85007.0,0.2122585]
[1744910698974,0.00508,85008.0,85007.0,0.2122585]
[1744910699275,0.005,85008.0,85007.0,0.2122585]
[1744910699579,0.00508,85008.0,85007.0,0.2122585]
[1744910701777,0.005,85008.0,85007.0,0.2122585]
[1744910702575,0.00508,85008.0,85007.0,0.2122585]
[1744910704280,0.00019684,85022.0,85015.0,0.1176474]
[1744910704480,0.00019684,85022.0,85019.0,0.4784419]
[1744910704698,0.1176337,85025.0,85024.0,0.176449]
[1744910704883,0.0305,85026.0,85025.0,0.1176336]
[1744910705073,0.0617,85026.0,85025.0,0.1176336]
[1744910705273,0.0617,85026.0,85025.0,0.1478336]
[1744910705476,0.0617,85026.0,85025.0,0.1805336]
[1744910705883,0.0312,85026.0,85025.0,0.1805336]
[1744910706373,0.0305,85031.0,85030.0,0.1176267]
[1744910706786,0.0305,85031.0,85030.0,0.1805267]
[1744910707083,0.1482053,85031.0,85030.0,0.1805267]
[1744910707291,0.5090053,85031.0,85030.0,0.1478267]
[1744910708880,0.5090053,85031.0,85030.0,0.1176267]
[1744910709389,0.5422053,85031.0,85030.0,0.1495267]
[1744910710187,0.0588175,85024.0,85018.0,0.01194328]
[1744910710387,0.4784419,85019.0,85018.0,0.01194328]
[1744910710595,0.51018121,85019.0,85018.0,0.01194328]
[1744910710894,0.4984419,85019.0,85018.0,0.01194328]
[1744910711081,0.1176433,85018.0,85014.0,0.1176482]
[1744910711284,0.5625433,85018.0,85015.0,0.1176473]
[1744910711477,0.2017433,85018.0,85017.0,0.11782122]
[1744910711685,0.5625433,85018.0,85017.0,0.11782122]
[1744910712085,0.2017433,85018.0,85017.0,0.11782122]
[1744910712295,0.5625433,85018.0,85017.0,0.11782122]
[1744910712683,0.5625433,85018.0,85017.0,0.14952122]
[1744910712994,0.5426233,85018.0,85017.0,0.14952122]
[1744910714705,0.1818233,85018.0,85017.0,0.0317]
[1744910714895,0.5426233,85018.0,85017.0,0.1493447]
[1744910715393,0.4785233,85018.0,85017.0,0.1493447]
[1744910715589,0.1177233,85018.0,85017.0,0.1493447]
[1744910715895,8e-05,85018.0,85017.0,0.1493447]
[1744910716286,0.1176366,85023.0,85022.0,0.1176377]
[1744910717393,0.1176366,85023.0,85022.0,0.1802377]
[1744910718097,0.00017617,85026.0,85022.0,0.0626]
[1744910718394,0.00017617,85026.0,85025.0,0.1176336]
[1744910718783,0.00017617,85026.0,85025.0,0.1802336]
[1744910719382,0.00025617,85026.0,85025.0,0.1802336]
[1744910720185,0.00017617,85026.0,85025.0,0.1802336]
[1744910720387,0.00025617,85026.0,85025.0,0.1802336]
[1744910722295,0.005,85034.0,85033.0,0.1176225]
[1744910722699,0.005,85034.0,85033.0,0.1507225]
[1744910722997,0.005,85034.0,85033.0,0.1808225]
[1744910723387,0.00508,85034.0,85033.0,0.1808225]
[1744910724194,0.00508,85034.0,85033.0,0.2128225]
[1744910725291,0.005,85034.0,85033.0,0.2128225]
[1744910725498,0.00508,85034.0,85033.0,0.2128225]
[1744910728082,0.00508,85034.0,85033.0,0.1808225]
[1744910729989,0.03828,85034.0,85033.0,0.1808225]
[1744910730396,0.00508,85034.0,85033.0,0.1808225]
[1744910731893,0.1227011,85034.0,85033.0,0.0331]
[1744910732490,0.1227011,85034.0,85033.0,0.0639]
[1744910732997,0.1227011,85034.0,85033.0,0.1815225]
[1744910733495,0.00508,85034.0,85033.0,0.1815225]
[1744910733995,0.1227011,85034.0,85033.0,0.0815225]
[1744910737212,0.1227011,85034.0,85033.0,0.1144225]
[1744910738099,0.00508,85034.0,85033.0,0.1144225]
[1744910738688,0.00508,85034.0,85033.0,0.1466225]
[1744910738894,0.00010801,85044.0,85043.0,0.1176087]
[1744910739192,0.1176115,85041.0,85040.0,0.478412]
[1744910739501,0.1176115,85041.0,85040.0,0.511012]
[1744910740094,0.2378144,85043.0,85042.0,0.1176101]
[1744910740494,0.2378144,85043.0,85042.0,0.1499101]
[1744910741005,0.1202044,85043.0,85042.0,0.1499101]
[1744910741409,0.4810044,85043.0,85042.0,0.1499101]
[1744910744110,0.4810044,85043.0,85042.0,0.15878291]
[1744910744302,0.1202044,85043.0,85042.0,0.15878291]
[1744910744717,0.0614,85043.0,85042.0,0.15878291]
[1744910747004,0.0587915,85062.0,85047.0,0.0588011]
[1744910747195,0.1175924,85055.0,85050.0,0.117599]
[1744910747401,0.1175916,85056.0,85050.0,0.117599]
[1744910747704,0.1175926,85055.0,85050.0,0.180899]
[1744910747906,0.03148,85051.0,85050.0,0.180899]
[1744910748104,0.1489976,85051.0,85050.0,0.180899]
[1744910748308,0.1490776,85051.0,85050.0,0.180899]
[1744910748701,0.1490776,85051.0,85050.0,0.147999]
[1744910749908,0.03148,85051.0,85050.0,0.147999]
[1744910750101,0.005,85060.0,85059.0,0.1175866]
[1744910750302,0.1525852,85060.0,85059.0,0.1499866]
[1744910751309,0.2495852,85060.0,85059.0,0.1499866]
[1744910751509,0.2495852,85060.0,85059.0,0.0324]
[1744910752505,0.6103852,85060.0,85059.0,0.0324]
[1744910752706,0.6103852,85060.0,85059.0,0.1499866]
[1744910753803,0.2495852,85060.0,85059.0,0.1499866]
[1744910755005,0.1763957,85053.0,85052.0,0.1763898]
[1744910755208,0.5371957,85053.0,85052.0,0.2080898]
[1744910756413,0.5371957,85053.0,85052.0,0.2668875]
[1744910757116,0.5371957,85053.0,85052.0,0.1175954]
[1744910757316,0.5471957,85053.0,85052.0,0.1175954]
[1744910760114,0.5371957,85053.0,85052.0,0.1175954]
[1744910760915,0.5471957,85053.0,85052.0,0.1175954]
[1744910761116,0.01,85053.0,85052.0,0.1175954]
[1744910761317,0.4783939,85054.0,85053.0,0.1175949]
[1744910761514,0.1175939,85054.0,85053.0,0.1175949]
[1744910761715,0.1807939,85054.0,85053.0,0.1175949]
[1744910761916,0.1808739,85054.0,85053.0,0.1175949]
[1744910764612,0.1908739,85054.0,85053.0,0.1175949]
[1744910767323,0.0587975,85053.0,85039.0,0.1176114]
[1744910767525,0.3608,85042.0,85032.0,0.0912115]
[1744910767714,0.1176184,85036.0,85024.0,0.0324]
[1744910768020,0.1276184,85036.0,85024.0,0.0324]
[1744910768227,0.1276184,85036.0,85022.0,0.0848]
[1744910768427,0.1276184,85036.0,85025.0,0.0588163]
[1744910768624,0.1898184,85036.0,85025.0,0.0588163]
[1744910768825,0.1176405,85020.0,85019.0,0.17946374]
[1744910769121,0.4784405,85020.0,85019.0,0.29710564]
[1744910769522,0.094,85021.0,85020.0,0.1176405]
[1744910769721,0.00026573,85033.0,85032.0,0.1176239]
[1744910770126,0.1176225,85033.0,85032.0,0.2091352]
[1744910770431,0.1176281,85031.0,85030.0,0.1176259]
[1744910770725,0.1176336,85026.0,85025.0,0.1764475]
[1744910771224,0.2129336,85026.0,85025.0,0.1764475]
[1744910771425,0.0319,85026.0,85025.0,0.1764475]
[1744910771722,0.1176231,85033.0,85032.0,0.1176239]
[1744910772315,0.00010801,85034.0,85033.0,0.1176225]
[1744910772911,0.11772911,85034.0,85033.0,0.1176225]
[1744910774227,0.1176239,85032.0,85031.0,0.058812]
[1744910774821,0.1819239,85032.0,85031.0,0.058812]
[1744910777414,0.0643,85032.0,85031.0,0.058812]
[1744910777614,0.1819239,85032.0,85031.0,0.058812]
[1744910779518,0.1819239,85032.0,85031.0,0.090912]
[1744910780424,0.1176322,85026.0,85025.0,0.1764485]
[1744910780625,0.4784322,85026.0,85025.0,0.1764485]
[1744910780824,0.5410322,85026.0,85025.0,0.1764485]
[1744910781621,0.5410322,85026.0,85025.0,0.1940807]
[1744910781814,0.5718322,85026.0,85025.0,0.2251807]
[1744910783225,0.2110322,85026.0,85025.0,0.2251807]
[1744910784031,0.0306,85026.0,85025.0,0.2251807]
[1744910784233,0.0306,85026.0,85025.0,0.2885807]
[1744910784628,0.1482322,85026.0,85025.0,0.2885807]
[1744910785031,0.1482322,85026.0,85025.0,0.2251807]
[1744910785226,0.1806322,85026.0,85025.0,0.2251807]
[1744910787027,0.1482322,85026.0,85025.0,0.2251807]
[1744910787432,0.0306,85026.0,85025.0,0.2251807]
[1744910787641,0.3608,85029.0,85027.0,0.0588154]
[1744910787830,0.3608,85029.0,85028.0,0.1820294]
[1744910788031,0.0329,85035.0,85033.0,0.1176225]
[1744910788432,0.00014581,85039.0,85033.0,0.2127225]
[1744910788734,0.0329,85039.0,85037.0,0.0588085]
[1744910788939,0.00017641,85041.0,85040.0,0.1176128]
[1744910789236,0.11798475,85041.0,85040.0,0.1820128]
[1744910789538,0.11786791,85041.0,85040.0,0.1820128]
[1744910789753,0.11778791,85041.0,85040.0,0.1820128]
[1744910789954,0.14916791,85041.0,85040.0,0.1820128]
[1744910790343,0.14916791,85041.0,85040.0,0.1493128]
[1744910790655,0.18086791,85041.0,85040.0,0.1493128]
[1744910795450,0.005,85060.0,85040.0,0.2817]
[1744910795655,0.005,85060.0,85059.0,0.1175866]
[1744910795955,0.12269321,85060.0,85059.0,0.1175866]
[1744910796250,0.1225852,85060.0,85059.0,0.1814866]
[1744910796452,0.00508,85060.0,85059.0,0.1814866]
[1744910798159,0.1226652,85060.0,85059.0,0.1814866]
[1744910798544,0.1226652,85060.0,85059.0,0.1504866]
[1744910798747,0.1846652,85060.0,85059.0,0.0329]
[1744910799652,0.1846652,85060.0,85059.0,0.1504866]
[1744910803053,0.03708,85060.0,85059.0,0.1504866]
[1744910803251,0.037,85060.0,85059.0,0.1817866]
[1744910803562,0.1646652,85060.0,85059.0,0.1504866]
[1744910803760,0.1952652,85060.0,85059.0,0.1504866]
[1744910805058,0.07768,85060.0,85059.0,0.1504866]
[1744910805362,0.04708,85060.0,85059.0,0.1504866]
[1744910805861,0.1646652,85060.0,85059.0,0.1504866]
[1744910806950,0.1546652,85060.0,85059.0,0.1504866]
[1744910808564,0.1873652,85060.0,85059.0,0.1504866]
[1744910810560,0.06978,85060.0,85059.0,0.1504866]
[1744910810752,0.03708,85060.0,85059.0,0.1504866]
[1744910810957,0.00508,85060.0,85059.0,0.1836866]
[1744910811159,0.1226652,85060.0,85059.0,0.1836866]
[1744910811357,0.1226652,85060.0,85059.0,0.1504866]
[1744910811665,0.1854652,85060.0,85059.0,0.1504866]
[1744910812365,0.00010801,85064.0,85063.0,0.117581]
[1744910812552,0.00010801,85064.0,85063.0,0.183281]
[1744910812758,0.0321,85069.0,85068.0,0.1175741]
[1744910812958,0.1596727,85069.0,85068.0,0.1175741]
[1744910813164,0.0421,85069.0,85068.0,0.1508741]
[1744910813368,0.0628,85069.0,85068.0,0.1508741]
[1744910813962,0.1803727,85069.0,85068.0,0.1508741]
[1744910815671,0.0321,85069.0,85068.0,0.1508741]
[1744910815967,0.0639,85069.0,85068.0,0.1508741]
[1744910816364,0.1814727,85069.0,85068.0,0.1508741]
[1744910817972,0.1496727,85069.0,85068.0,0.1508741]
[1744910818467,0.0621,85069.0,85068.0,0.1508741]
[1744910818664,0.05889371,85070.0,85069.0,0.1175727]
[1744910818870,0.00010801,85070.0,85069.0,0.1475727]
[1744910819062,0.00010801,85070.0,85069.0,0.1803727]
[1744910819260,0.11767941,85070.0,85069.0,0.1803727]
[1744910819459,0.00010801,85070.0,85069.0,0.1803727]
[1744910820058,0.03280801,85070.0,85069.0,0.1803727]
[1744910820864,0.00010801,85070.0,85069.0,0.1803727]
[1744910821271,0.4783701,85071.0,85070.0,0.1175714]
[1744910821468,0.3608,85071.0,85070.0,0.1175714]
[1744910821667,0.0327,85073.0,85072.0,0.1175686]
[1744910821973,0.1502672,85073.0,85072.0,0.1175686]
[1744910822174,0.1502672,85073.0,85072.0,0.1809686]
[1744910822367,0.0327,85073.0,85072.0,0.1809686]
[1744910822569,0.1502672,85073.0,85072.0,0.1809686]
[1744910822872,0.1175672,85073.0,85072.0,0.2397528]
[1744910823071,0.00010801,85074.0,85073.0,0.1175672]
[1744910823272,0.1175594,85079.0,85078.0,0.176339]
[1744910823459,0.01,85079.0,85078.0,0.176339]
[1744910823664,0.0587774,85082.0,85081.0,0.1175562]
[1744910823968,0.13112321,85082.0,85081.0,0.1175562]
[1744910824168,0.248535,85082.0,85081.0,0.1175562]
[1744910824575,0.248615,85082.0,85081.0,0.1175562]
[1744910824875,0.1498348,85082.0,85081.0,0.1175562]
[1744910825473,0.1498348,85082.0,85081.0,0.1495562]
[1744910826170,0.03228,85082.0,85081.0,0.1495562]
[1744910826966,0.0587726,85089.0,85087.0,0.1763204]
[1744910827176,0.0331,85088.0,85087.0,0.1763204]
[1744910827377,0.03320801,85088.0,85087.0,0.1763204]
[1744910827577,0.0331,85088.0,85087.0,0.1763204]
[1744910828269,0.03318,85088.0,85087.0,0.1763204]
[1744910828573,8e-05,85088.0,85087.0,0.1763204]
[1744910828871,0.1176265,85088.0,85087.0,0.1763204]
[1744910829273,0.1175465,85088.0,85087.0,0.1763204]
[1744910829470,0.1812265,85088.0,85087.0,0.1763204]
[1744910829972,0.1486265,85088.0,85087.0,0.1763204]
[1744910830175,0.03108,85088.0,85087.0,0.1763204]
[1744910830570,0.1486265,85088.0,85087.0,0.1763204]
[1744910831172,0.03108,85088.0,85087.0,0.1763204]
[1744910833676,0.1486265,85088.0,85087.0,0.1763204]
[1744910834077,0.03108,85088.0,85070.0,0.24034246]
[1744910834284,0.1175686,85073.0,85072.0,0.1763453]
[1744910834471,0.4195822,85076.0,85073.0,0.0587829]
[1744910834665,0.1175658,85074.0,85073.0,0.1763474]
[1744910834973,0.5371316,85084.0,85083.0,0.1175534]
[1744910835173,0.1763316,85084.0,85083.0,0.1175534]
[1744910835373,0.058776,85084.0,85083.0,0.1175534]
[1744910835780,0.419576,85084.0,85083.0,0.1175534]
[1744910838179,0.058776,85084.0,85083.0,0.1175534]
[1744910838380,0.1175465,85089.0,85087.0,0.1175479]
[1744910838584,0.4784265,85088.0,85087.0,0.1175479]
[1744910838776,0.4783465,85088.0,85087.0,0.1175479]
[1744910838977,0.4784265,85088.0,85087.0,0.1175479]
[1744910839390,0.4784265,85088.0,85087.0,0.1481479]
[1744910842185,0.4784265,85088.0,85087.0,0.0306]
[1744910842689,0.4784265,85088.0,85087.0,0.1481479]
[1744910844890,8e-05,85088.0,85087.0,0.1481479]
[1744910845085,8e-05,85088.0,85087.0,0.2126479]
[1744910845392,0.1175465,85088.0,85087.0,0.2714218]
[1744910846095,0.1176265,85088.0,85087.0,0.2714218]
[1744910847289,0.1490265,85088.0,85087.0,0.28312466]
[1744910847686,0.1490265,85088.0,85087.0,0.2714218]
[1744910847892,0.03148,85088.0,85087.0,0.2714218]
[1744910849404,0.1490265,85088.0,85087.0,0.2714218]
[1744910850200,0.03148,85088.0,85087.0,0.2714218]
[1744910851799,8e-05,85088.0,85087.0,0.2714218]
[1744910852289,0.0587726,85092.0,85091.0,0.0587704]
[1744910852489,0.1763191,85092.0,85091.0,0.0587704]
[1744910852801,0.05887731,85094.0,85093.0,0.1175396]
[1744910853506,0.05887731,85094.0,85093.0,0.1503396]
[1744910860614,0.00010801,85094.0,85093.0,0.1503396]
[1744910860818,0.11764621,85094.0,85093.0,0.1503396]
[1744910864911,0.15074621,85094.0,85093.0,0.1503396]
[1744910867516,0.15074621,85094.0,85093.0,0.15504258]
[1744910867709,0.15074621,85094.0,85093.0,0.12459407]
[1744910867911,0.15074621,85094.0,85093.0,0.00705447]
[1744910868322,0.15074621,85094.0,85093.0,0.15519407]
[1744910869510,0.18104621,85094.0,85093.0,0.15519407]
[1744910875326,0.54184621,85094.0,85093.0,0.15519407]
[1744910875626,0.0331,85094.0,85093.0,0.15519407]
[1744910875823,0.03318,85094.0,85093.0,0.21889407]
[1744910876214,0.0331,85094.0,85093.0,0.21889407]
[1744910876527,0.03318,85094.0,85093.0,0.21889407]
[1744910876728,0.1507182,85094.0,85093.0,0.21889407]
[1744910877220,0.03318,85094.0,85093.0,0.21889407]
[1744910878728,0.1507182,85094.0,85093.0,0.21889407]
[1744910882723,8e-05,85094.0,85093.0,0.21889407]
[1744910883226,0.0309,85099.0,85098.0,0.1175327]
[1744910883526,0.03100801,85099.0,85098.0,0.4783327]
[1744910883725,0.03100801,85099.0,85098.0,0.5409327]
[1744910884423,0.17893931,85099.0,85098.0,0.5092327]
[1744910885127,0.1812908,85099.0,85098.0,0.51813626]
[1744910885330,0.1812908,85099.0,85098.0,0.1484327]
[1744910886131,0.17893931,85099.0,85098.0,0.15078419]
[1744910893331,0.14853931,85099.0,85098.0,0.15078419]
[1744910894621,0.14853931,85099.0,85098.0,0.18178419]
[1744910895821,0.17873931,85099.0,85098.0,0.18178419]
[1744910896021,0.14853931,85099.0,85098.0,0.18178419]
[1744910896233,0.03100801,85099.0,85098.0,0.18178419]
[1744910896725,0.0309,85099.0,85098.0,0.18178419]
[1744910896926,0.03098,85099.0,85098.0,0.18178419]
[1744910897432,0.06208,85099.0,85098.0,0.15078419]
[1744910897633,0.1796113,85099.0,85098.0,0.15078419]
[1744910902440,0.03098,85099.0,85098.0,0.15078419]
[1744910902631,0.0309,85099.0,85098.0,0.18308419]
[1744910902833,0.03098,85099.0,85098.0,0.18308419]
[1744910903740,0.1485113,85099.0,85098.0,0.18308419]
[1744910904144,0.1485113,85099.0,85098.0,0.1807327]
[1744910906444,0.1485113,85099.0,85098.0,0.1484327]
[1744910906644,0.1787113,85099.0,85098.0,0.1484327]
[1744910907444,0.1485113,85099.0,85098.0,0.1484327]
[1744910907642,0.1485113,85099.0,85098.0,0.1802327]
[1744910909331,0.03098,85099.0,85098.0,0.1802327]
[1744910909534,0.1485113,85099.0,85098.0,0.1802327]
[1744910911139,0.03098,85099.0,85098.0,0.1802327]
[1744910911339,8e-05,85099.0,85098.0,0.1802327]
[1744910911646,0.1,85100.0,85099.0,0.1175313]
[1744910912141,0.1,85100.0,85099.0,0.18468279]
[1744910913038,0.10008,85100.0,85099.0,0.18468279]
[1744910913233,0.10008,85100.0,85099.0,0.1823313]
[1744910913639,0.1,85100.0,85099.0,0.1823313]
[1744910913841,0.10008,85100.0,85099.0,0.1823313]
[1744910915245,0.10243149,85100.0,85099.0,0.1823313]
[1744910916444,0.10243149,85100.0,85099.0,0.5431313]
[1744910917141,0.1,85100.0,85099.0,0.5431313]
[1744910917341,0.0303,85108.0,85099.0,0.5431313]
[1744910917342,0.00014581,85110.0,85109.0,0.1175175]
[1744910917639,0.06109979,85125.0,85116.0,0.1175078]
[1744910917840,0.00010801,85120.0,85116.0,0.1175078]
[1744910918245,0.21162175,85117.0,85116.0,0.1793078]
[1744910918830,0.21162175,85117.0,85116.0,0.5401078]
[1744910919541,0.21170175,85117.0,85116.0,0.5401078]
[1744910920638,0.21170175,85117.0,85116.0,0.55194529]
[1744910920835,0.00243149,85117.0,85116.0,0.55194529]
[1744910922450,0.0331,85122.0,85121.0,0.1175009]
[1744910923448,0.03545149,85122.0,85121.0,0.1819009]
[1744910926747,0.00019684,85131.0,85130.0,0.1174885]
[1744910927244,0.00254833,85131.0,85130.0,0.1174885]
[1744910927445,0.12003543,85131.0,85130.0,0.1174885]
[1744910927648,0.00254833,85131.0,85130.0,0.1174885]
[1744910928550,0.00254833,85131.0,85128.0,0.2415361]
[1744910928551,0.1174899,85129.0,85128.0,0.0329]
[1744910929154,0.1175012,85123.0,85122.0,0.1762454]
[1744910930357,0.00235149,85123.0,85122.0,0.1762454]
[1744910930843,0.11984969,85123.0,85122.0,0.1762454]
[1744910931252,0.1175009,85121.0,85120.0,0.1475019]
[1744910931550,0.1762589,85118.0,85116.0,0.4195533]
[1744910931740,0.1762589,85118.0,85117.0,0.1475054]
[1744910931943,0.0587525,85118.0,85117.0,0.1575054]
[1744910932145,0.0587525,85118.0,85117.0,0.1475054]
[1744910932452,0.06110399,85118.0,85117.0,0.1475054]
[1744910933357,0.00235149,85118.0,85117.0,0.1475054]
[1744910934347,0.03445149,85118.0,85117.0,0.1475054]
[1744910936047,0.03445149,85118.0,85117.0,0.1802054]
[1744910939353,0.03445149,85118.0,85117.0,0.1902054]
[1744910939658,0.03445149,85118.0,85117.0,0.1802054]
[1744910940356,0.03445149,85118.0,85117.0,0.1475054]
[1744910940549,0.1175064,85117.0,85116.0,0.5370602]
[1744910940949,0.1488064,85117.0,85116.0,0.5370602]
[1744910941158,0.15115789,85117.0,85116.0,0.5370602]
[1744910942061,0.15115789,85117.0,85108.0,0.00017631]
[1744910942062,0.1175175,85109.0,85108.0,0.00017631]
[1744910942251,0.45320479,85117.0,85110.0,0.058758]
[1744910942451,0.45320479,85117.0,85116.0,0.1175078]
[1744910942452,0.09240479,85117.0,85116.0,0.1175078]
[1744910943460,0.45320479,85117.0,85116.0,0.1175078]
[1744910943658,0.45320479,85117.0,85116.0,0.1496078]
[1744910944261,0.09240479,85117.0,85116.0,0.1496078]
[1744910944459,0.058756,85114.0,85111.0,0.0587573]
[1744910944649,0.1175133,85112.0,85111.0,0.2350273]
[1744910945053,0.1480133,85112.0,85111.0,0.0587567]
[1744910946257,0.15036479,85112.0,85111.0,0.0587567]
[1744910947563,0.15036479,85112.0,85111.0,0.0909567]
[1744910948661,0.00235149,85112.0,85111.0,0.0909567]
[1744910948860,0.00235149,85112.0,85111.0,0.1555567]
[1744910949166,8e-05,85112.0,85111.0,0.15790819]
[1744910951265,8e-05,85112.0,85111.0,0.1555567]
[1744910952268,8e-05,85112.0,85111.0,0.15790819]
[1744910953364,8e-05,85112.0,85111.0,0.16790819]
[1744910953663,0.1174989,85123.0,85111.0,0.16790819]
[1744910953664,0.1572486,85125.0,85118.0,0.0587521]
[1744910953869,0.1572486,85125.0,85124.0,0.1174968]
[1744910954166,0.15960009,85125.0,85124.0,0.1174968]
[1744910954778,0.27709999,85125.0,85124.0,0.1174968]
[1744910955259,0.27709999,85125.0,85124.0,0.1486968]
[1744910958459,0.1175175,85109.0,85103.0,0.0587627]
[1744910958664,0.4783175,85109.0,85108.0,0.11769521]
[1744910959576,0.5104175,85109.0,85108.0,0.11769521]
[1744910959774,0.5431175,85109.0,85108.0,0.11769521]
[1744910966575,0.1175299,85100.0,85099.0,0.1175307]
[1744910967272,0.1811299,85100.0,85099.0,0.1483307]
[1744910967472,0.1811299,85100.0,85099.0,0.1175307]
[1744910967880,0.2125299,85100.0,85099.0,0.1486307]
[1744910971674,0.2125299,85100.0,85099.0,0.1790307]
[1744910972075,0.2125299,85100.0,85099.0,0.0615]
[1744910972270,0.2125299,85100.0,85099.0,0.1790313]
[1744910972481,0.2125299,85100.0,85099.0,0.1486313]
[1744910974287,0.20782692,85100.0,85099.0,0.1795313]
[1744910979192,0.20782692,85100.0,85099.0,0.0311]
[1744910979499,0.20782692,85100.0,85099.0,0.1486313]
[1744910979699,0.56862692,85100.0,85099.0,0.0311]
[1744910979898,0.1175396,85093.0,85092.0,0.1484404]
[1744910980097,0.117541,85092.0,85085.0,0.0303]
[1744910980291,0.180541,85092.0,85086.0,0.0309]
[1744910980492,0.180541,85092.0,85087.0,0.00903741]